bitfinex-derivatives/quotes_ETHF0:USTF0_20250923
["timestamp","ask_amount","ask_price","bid_price","bid_amount"]
[1758597098870,0.33,4120.3,4120.1,0.59144216]
[1758597099059,0.33,4120.5,4120.2,0.01724216]
[1758597099259,0.43644,4120.4,4120.3,0.5742]
[1758597099660,0.33,4120.5,4120.4,0.3192]
[1758597100062,0.33,4120.5,4120.4,0.01724216]
[1758597100468,0.54360699,4120.5,4120.4,0.27224216]
[1758597100665,0.67470699,4120.5,4120.4,0.27224216]
[1758597101369,3.88250699,4120.5,4120.4,0.01724216]
[1758597101561,3.88250699,4120.5,4120.4,0.27224216]
[1758597102467,0.43665,4118.5,4118.4,0.3192]
[1758597102673,0.33,4118.4,4118.3,3.2078]
[1758597102872,0.4367,4118.0,4117.8,3.2078]
[1758597103075,0.4367,4118.0,4116.2,6.2898896]
[1758597103076,0.43688,4116.3,4116.2,42.5168]
[1758597103275,0.43688,4116.3,4116.2,39.309]
[1758597103276,0.65041582,4116.3,4116.2,39.309]
[1758597103475,0.65041582,4116.3,4115.9,0.3192]
[1758597103476,0.43691,4116.0,4115.9,0.3192]
[1758597103684,3.85824582,4116.0,4115.9,0.5762]
[1758597103976,3.42133582,4116.0,4115.9,0.257]
[1758597104177,0.21353582,4116.0,4115.9,0.5762]
[1758597104378,3.42133582,4116.0,4115.9,0.58970122]
[1758597104677,3.64466,4116.5,4116.1,0.3192]
[1758597104873,3.64466,4116.5,4116.3,0.3192]
[1758597104874,0.24114451,4116.4,4116.3,0.3192]
[1758597105073,0.24114451,4116.4,4116.3,3.527]
[1758597105274,0.07614794,4116.4,4116.3,0.5772]
[1758597105469,0.07614794,4116.4,4116.3,4.60454847]
[1758597105676,0.07614794,4116.4,4116.3,4.61839572]
[1758597105875,0.07614794,4116.4,4116.3,45.41839572]
[1758597106077,3.2078,4117.1,4117.0,0.128]
[1758597106277,3.2078,4117.1,4117.0,0.7062]
[1758597106781,3.2078,4117.1,4117.0,0.74739572]
[1758597107285,3.2078,4117.1,4117.0,0.76124297]
[1758597107481,3.2078,4117.1,4117.0,0.31404297]
[1758597107785,3.2078,4117.1,4117.0,0.63324297]
[1758597107985,3.2078,4117.1,4117.0,0.05504297]
[1758597108189,3.2078,4117.1,4117.0,0.32938797]
[1758597108879,7.2078,4117.1,4117.0,0.07038797]
[1758597109085,7.2078,4117.1,4117.0,0.32938797]
[1758597109388,3.2078,4117.1,4117.0,0.66393297]
[1758597109788,3.2078,4117.6,4117.0,0.79193297]
[1758597109976,3.64454,4117.6,4117.5,0.4472]
[1758597110177,3.64454,4117.6,4117.5,0.79193297]
[1758597110482,3.2078,4117.6,4117.5,0.79193297]
[1758597111081,3.2078,4117.6,4117.5,0.53293297]
[1758597111283,3.2078,4117.6,4117.5,0.79193297]
[1758597111584,3.64449,4118.1,4118.0,0.4472]
[1758597111885,3.2078,4118.1,4118.0,0.7062]
[1758597112086,0.43667,4118.3,4118.1,0.3192]
[1758597112284,0.43667,4118.3,4118.0,0.387]
[1758597112285,3.2078,4118.6,4118.3,0.3192]
[1758597112483,3.2078,4118.6,4118.5,0.4472]
[1758597112687,3.64444,4118.6,4118.5,0.4472]
[1758597113188,3.64444,4118.6,4118.5,0.7062]
[1758597113480,3.64444,4118.6,4118.5,0.79193297]
[1758597113680,3.64444,4118.6,4118.5,0.53293297]
[1758597113884,3.64444,4118.6,4118.5,0.79193297]
[1758597114392,3.64443,4118.6,4118.5,0.79193297]
[1758597114588,3.2078,4118.6,4118.5,0.79193297]
[1758597114784,3.2078,4119.3,4118.5,4.47273297]
[1758597115090,3.2078,4119.3,4119.0,0.4472]
[1758597115091,0.43658,4119.1,4119.0,0.4472]
[1758597115281,0.35089703,4118.6,4118.5,0.128]
[1758597115483,0.35089703,4118.6,4118.5,80.8342]
[1758597115985,0.43669,4118.1,4118.0,0.4472]
[1758597116180,3.64449,4118.1,4118.0,0.7062]
[1758597116686,3.64449,4118.1,4118.0,41.2472]
[1758597116887,0.43674,4117.6,4117.5,0.4472]
[1758597117188,0.43674,4117.6,4117.5,0.7062]
[1758597117387,0.43672,4117.8,4117.6,0.3192]
[1758597117588,3.64449,4118.1,4118.0,0.4472]
[1758597117793,3.64449,4118.1,4118.0,0.7062]
[1758597119991,3.2078,4118.1,4118.0,0.7062]
[1758597120486,0.43668,4118.2,4118.1,0.3192]
[1758597120692,3.64448,4118.2,4118.1,0.3192]
[1758597120994,3.64448,4118.2,4118.1,0.5772]
[1758597121189,3.64448,4118.2,4118.1,0.3192]
[1758597121491,3.64448,4118.2,4118.1,0.5772]
[1758597122083,3.64448,4118.2,4118.1,0.3192]
[1758597122695,3.64448,4118.2,4118.1,0.5772]
[1758597122991,3.2078,4118.2,4118.1,0.5772]
[1758597123287,3.2078,4118.9,4118.7,0.3242]
[1758597123486,0.43658,4119.2,4119.0,0.1315]
[1758597123692,3.64434,4119.6,4119.5,0.4557]
[1758597123991,3.64434,4119.6,4119.5,41.5137]
[1758597124293,3.2078,4120.1,4120.0,0.4557]
[1758597124487,3.2078,4120.1,4120.0,0.7137]
[1758597125389,3.2078,4120.1,4120.0,0.4557]
[1758597125594,0.43653,4119.6,4119.5,41.2557]
[1758597125782,3.2078,4119.6,4119.5,41.5137]
[1758597126283,3.2078,4120.7,4120.6,0.3242]
[1758597126488,3.2078,4120.7,4120.6,0.5822]
[1758597126797,3.2078,4120.7,4120.6,4.5822]
[1758597126991,3.2078,4121.2,4121.1,0.3242]
[1758597127190,3.2078,4121.2,4121.1,41.3822]
[1758597127493,3.2078,4121.2,4121.1,49.47709367]
[1758597128195,3.2078,4122.4,4121.7,0.3242]
[1758597128493,3.2078,4122.4,4121.9,0.3242]
[1758597128694,3.2078,4122.4,4121.9,0.43628]
[1758597128894,3.2078,4122.4,4122.1,0.3242]
[1758597129094,3.2078,4122.4,4122.3,0.3242]
[1758597129492,3.5381,4122.4,4122.3,0.3242]
[1758597129792,3.2078,4122.4,4122.3,0.3242]
[1758597129996,2.12839292,4126.2,4124.6,0.3242]
[1758597130188,21.76313,4131.7,4124.6,0.3242]
[1758597130189,0.1296,4128.0,4126.3,0.43582]
[1758597130383,0.022,4127.9,4127.7,4.09489367]
[1758597130594,0.042,4128.7,4127.7,4.09489367]
[1758597130794,0.1279,4128.0,4127.7,4.09489367]
[1758597131294,3.2078,4128.2,4127.8,40.8]
[1758597131486,0.1279,4128.0,4127.6,0.214]
[1758597132192,0.3303,4127.9,4127.6,0.214]
[1758597132497,0.1279,4128.0,4127.6,0.214]
[1758597132684,0.3303,4127.9,4127.6,0.214]
[1758597133594,3.5381,4127.7,4127.6,0.214]
[1758597134507,0.3303,4127.7,4127.6,0.214]
[1758597135591,0.3303,4127.7,4126.0,0.3835]
[1758597135592,0.297,4127.6,4126.0,0.3835]
[1758597135783,0.297,4126.9,4126.1,40.8]
[1758597136493,0.297,4126.3,4126.1,40.8]
[1758597136688,0.297,4126.3,4123.8,0.64540757]
[1758597136689,3.4828,4126.4,4125.0,3.2735]
[1758597136895,0.43591,4125.5,4125.0,3.2078]
[1758597137088,3.2078,4125.1,4124.2,0.43604]
[1758597137395,3.2078,4125.1,4124.1,3.2078]
[1758597137396,3.64375,4125.1,4124.3,40.8]
[1758597137695,3.2078,4125.1,4124.3,41.1178]
[1758597137899,0.73293,4125.3,4123.7,0.3178]
[1758597137900,0.297,4124.4,4123.7,0.3178]
[1758597138090,3.2078,4123.9,4123.4,3.2078]
[1758597138398,3.2078,4123.9,4123.2,41.1178]
[1758597138605,0.43615,4123.2,4122.5,0.4396]
[1758597138899,0.573,4123.8,4122.6,0.43621]
[1758597138900,0.71211,4123.6,4122.6,0.43621]
[1758597139089,0.43613,4123.4,4123.0,0.3178]
[1758597139285,0.43613,4123.4,4122.9,3.2078]
[1758597139587,0.43613,4123.4,4123.0,0.3178]
[1758597139790,0.297,4123.8,4122.9,3.2078]
[1758597139791,0.297,4123.0,4122.9,3.2078]
[1758597139987,0.297,4122.4,4121.7,3.2078]
[1758597140497,0.43624,4122.3,4121.7,3.2078]
[1758597140692,0.43626,4122.2,4121.6,0.276]
[1758597140890,0.43628,4122.0,4121.7,0.3178]
[1758597141090,0.4363,4121.8,4121.6,0.276]
[1758597141598,3.2078,4122.1,4121.7,0.3178]
[1758597141787,3.2078,4122.1,4121.2,0.3178]
[1758597141788,0.43634,4121.4,4121.2,0.3178]
[1758597141988,0.43636,4121.2,4120.7,0.074]
[1758597142194,3.2078,4121.6,4121.3,0.43634]
[1758597142397,3.2078,4122.1,4121.4,0.7146]
[1758597142696,3.64406,4122.2,4121.5,0.276]
[1758597143087,3.64406,4122.2,4121.1,3.2078]
[1758597143088,0.43634,4121.4,4121.1,0.3178]
[1758597143388,0.43634,4121.4,4120.8,0.276]
[1758597143389,0.43638,4121.0,4120.8,0.276]
[1758597143893,0.73338,4121.0,4120.8,0.276]
[1758597144395,0.43639,4120.9,4120.8,0.5938]
[1758597144592,0.43639,4120.9,4120.8,0.276]
[1758597144896,0.43638,4121.0,4120.8,0.276]
[1758597145484,3.2078,4121.1,4120.9,0.3178]
[1758597145689,0.4363,4121.9,4121.1,0.3178]
[1758597145885,3.2078,4121.6,4121.1,0.3178]
[1758597146083,3.64413,4121.6,4121.3,0.3178]
[1758597146288,3.2078,4121.6,4121.2,0.275]
[1758597146594,3.2078,4121.6,4121.3,0.276]
[1758597146595,0.297,4121.4,4121.3,0.276]
[1758597146799,0.43635,4121.3,4121.1,0.276]
[1758597147694,3.2078,4121.7,4121.2,0.3178]
[1758597147887,0.43633,4121.6,4121.1,0.276]
[1758597148086,0.43633,4121.6,4121.2,0.3178]
[1758597148599,0.43634,4121.5,4121.2,0.3178]
[1758597148788,3.2078,4121.7,4121.1,0.276]
[1758597148987,0.43636,4121.3,4121.2,0.3178]
[1758597149196,0.43631,4121.7,4121.3,0.3178]
[1758597149499,0.4363,4121.8,4121.5,0.1218]
[1758597149696,0.4363,4121.8,4121.6,0.275]
[1758597149896,3.2078,4121.7,4121.1,0.3178]
[1758597150088,0.43635,4121.3,4121.2,0.275]
[1758597150691,0.43641,4120.8,4120.6,3.2078]
[1758597150902,0.43639,4121.0,4120.7,0.275]
[1758597151090,0.43635,4121.4,4121.0,0.1274]
[1758597151294,3.2078,4121.7,4121.2,0.3137]
[1758597151295,0.43636,4121.3,4121.2,0.3137]
[1758597151602,0.43633,4121.6,4121.1,0.275]
[1758597151800,0.43633,4121.6,4121.5,0.1274]
[1758597151998,0.43633,4121.6,4121.5,0.7161]
[1758597152592,0.43629,4121.9,4121.6,0.3137]
[1758597152795,3.2078,4122.2,4121.7,0.3137]
[1758597152997,0.43621,4122.7,4122.1,0.3137]
[1758597153202,0.43621,4122.7,4122.0,3.3352]
[1758597153203,0.43624,4122.3,4122.2,41.3887]
[1758597153394,0.43624,4122.3,4121.5,0.1274]
[1758597153395,0.43637,4121.1,4121.0,0.4411]
[1758597153595,0.43637,4121.1,4121.0,0.7161]
[1758597153792,1.0907,4122.0,4121.0,0.7161]
[1758597154002,0.43637,4121.2,4121.0,0.4024]
[1758597154310,0.43637,4121.2,4121.1,0.3137]
[1758597155711,2.32207,4124.3,4124.2,0.43604]
[1758597156012,3.2078,4129.0,4126.1,0.3137]
[1758597156209,3.2078,4129.0,4126.0,0.1274]
[1758597156210,0.43572,4127.3,4126.5,0.3137]
[1758597156501,0.43569,4127.6,4126.5,0.3137]
[1758597156709,0.43569,4127.6,4127.1,3.2078]
[1758597157011,0.43569,4127.6,4127.1,3.5068]
[1758597157195,0.43567,4127.8,4127.1,3.5068]
[1758597157803,0.43566,4127.9,4127.1,3.2078]
[1758597158104,0.4357,4127.5,4127.1,3.5068]
[1758597158303,0.43567,4127.8,4127.2,0.3137]
[1758597158498,0.43567,4127.8,4127.2,0.6117]
[1758597158700,3.5068,4128.5,4127.2,0.6117]
[1758597158906,0.43571,4127.4,4127.2,0.6117]
[1758597159107,0.43571,4127.4,4127.3,0.3137]
[1758597159303,3.5068,4128.5,4127.3,0.6117]
[1758597159505,0.43566,4127.9,4127.6,3.5215]
[1758597159909,0.43566,4127.9,4127.6,3.2078]
[1758597160106,0.43566,4127.9,4127.7,0.3137]
[1758597160504,0.43566,4127.9,4127.8,0.3137]
[1758597160707,0.43562,4128.2,4127.7,0.297]
[1758597161010,0.43562,4128.2,4127.8,0.3137]
[1758597161210,0.43562,4128.2,4128.1,3.5215]
[1758597161513,0.129,4128.4,4128.1,3.8185]
[1758597161712,0.43561,4128.3,4128.2,0.3137]
[1758597162115,3.2078,4130.6,4128.3,0.3137]
[1758597162314,3.2078,4130.6,4129.7,3.2078]
[1758597162516,0.43544,4130.0,4129.8,0.3137]
[1758597162706,0.43544,4130.0,4129.8,0.6107]
[1758597163012,0.43544,4130.0,4129.7,3.2078]
[1758597163013,0.43545,4129.8,4129.7,3.2078]
[1758597163211,0.43545,4129.8,4129.7,3.5215]
[1758597163407,0.43545,4129.8,4129.7,3.2078]
[1758597163608,0.43545,4129.8,4129.7,3.5048]
[1758597164412,0.43545,4129.8,4129.7,3.8185]
[1758597165818,0.43545,4129.8,4129.7,3.8175]
[1758597166614,0.43543,4130.0,4129.9,0.3137]
[1758597166807,0.43535,4130.9,4129.9,0.3137]
[1758597167009,0.0238,4132.0,4130.6,0.3137]
[1758597167315,0.4353,4131.3,4131.2,0.3137]
[1758597167517,0.4353,4131.3,4131.2,0.6097]
[1758597168016,0.43536,4130.7,4130.6,3.5215]
[1758597168218,0.43536,4130.7,4130.6,3.8175]
[1758597168420,0.43536,4130.7,4130.6,3.5215]
[1758597168615,0.43536,4130.7,4130.6,3.8175]
[1758597168815,0.43534,4130.9,4130.7,0.3137]
[1758597169012,0.43534,4130.9,4130.6,3.5038]
[1758597169325,0.43535,4130.8,4130.7,0.3137]
[1758597169619,0.45915,4130.8,4130.6,3.2078]
[1758597170110,0.45915,4130.8,4130.1,0.6087]
[1758597170111,0.43541,4130.2,4130.1,0.6087]
[1758597170415,0.43541,4130.2,4130.1,0.295]
[1758597170718,0.43543,4130.0,4129.9,3.2078]
[1758597171105,4.43543,4130.0,4129.9,3.2078]
[1758597171713,4.45923,4130.0,4129.9,3.2078]
[1758597172323,4.43543,4130.0,4129.9,3.2078]
[1758597172524,0.43543,4130.0,4129.9,3.2078]
[1758597173519,0.43543,4130.0,4129.9,3.5215]
[1758597174224,0.43543,4130.0,4129.9,3.8155]
[1758597174422,0.43548,4129.6,4129.5,0.1274]
[1758597174626,0.43548,4129.6,4129.5,0.7341]
[1758597175520,0.43548,4129.6,4129.5,0.3137]
[1758597175818,0.43548,4129.6,4129.5,0.6067]
[1758597176020,0.43548,4129.6,4129.5,0.7341]
[1758597176722,0.293,4130.8,4129.6,0.3137]
[1758597177024,0.43543,4130.1,4130.0,3.6489]
[1758597177216,0.43543,4130.1,4130.0,3.9419]
[1758597177926,0.4354,4130.4,4130.1,0.3137]
[1758597178115,3.2078,4131.1,4130.1,0.3137]
[1758597178116,1.08836,4130.9,4130.1,0.3137]
[1758597178316,0.43541,4130.3,4130.2,0.6057]
[1758597178824,0.43541,4130.3,4130.0,3.3352]
[1758597178825,0.43547,4129.7,4129.6,0.3137]
[1758597179024,0.43547,4129.7,4129.5,3.2078]
[1758597179722,0.43547,4129.7,4129.5,3.5215]
[1758597179931,0.43547,4129.7,4129.5,3.2078]
[1758597180125,4.0,4129.6,4129.5,3.2078]
[1758597181118,4.0,4129.6,4129.2,0.4194]
[1758597181313,1.08868,4129.7,4129.2,0.4194]
[1758597181521,0.4355,4129.4,4129.3,0.3111]
[1758597182135,0.43549,4129.5,4129.3,0.3111]
[1758597182322,0.291,4130.6,4129.5,0.4352]
[1758597182630,0.43541,4130.2,4130.1,0.3111]
[1758597182923,0.43541,4130.2,4130.1,0.6021]
[1758597183130,0.43543,4130.0,4129.9,3.5189]
[1758597183324,3.2078,4131.0,4130.0,0.1241]
[1758597183527,0.43538,4130.6,4130.5,0.4352]
[1758597183726,0.43538,4130.6,4130.5,0.3111]
[1758597183930,3.4988,4131.5,4130.5,0.4151]
[1758597184127,3.2078,4131.5,4130.5,0.1241]
[1758597184325,3.2078,4131.5,4129.8,3.2078]
[1758597184326,1.08846,4130.6,4129.8,3.2078]
[1758597184545,1.08839,4130.8,4129.8,3.2078]
[1758597184546,0.43545,4129.9,4129.8,3.4988]
[1758597185137,0.43545,4129.9,4129.8,3.8099]
[1758597185424,0.43545,4129.9,4129.8,4.14420757]
[1758597185623,0.43545,4129.9,4129.8,3.4988]
[1758597185825,0.43545,4129.9,4129.8,4.45530757]
[1758597186033,0.43545,4129.9,4129.8,3.8099]
[1758597186233,0.43545,4129.9,4129.8,4.45530757]
[1758597186533,3.2078,4131.2,4130.2,0.3111]
[1758597186731,0.43532,4131.1,4130.9,0.95985573]
[1758597186929,0.43532,4131.1,4131.0,0.6021]
[1758597187332,0.43532,4131.1,4131.0,1.25085573]
[1758597187632,0.75602,4131.1,4130.9,0.64875573]
[1758597187831,0.75605,4130.8,4130.7,0.29]
[1758597188132,0.75605,4130.8,4130.7,0.93875573]
[1758597188332,0.43535,4130.8,4130.7,0.93875573]
[1758597188527,0.43535,4130.8,4130.7,1.24985573]
[1758597188933,0.43535,4130.8,4130.7,0.6011]
[1758597189329,0.43535,4130.8,4130.6,4.07280764]
[1758597189727,0.3207,4130.5,4130.4,0.86500764]
[1758597189924,0.43538,4130.5,4130.4,0.96110034]
[1758597190129,0.43538,4130.5,4130.4,1.46610764]
[1758597190333,0.75608,4130.5,4130.4,0.29]
[1758597190733,0.43538,4130.6,4130.4,0.6011]
[1758597191037,0.43538,4130.6,4130.5,0.3111]
[1758597191626,0.43539,4130.4,4130.3,0.16259271]
[1758597191831,0.75612,4130.2,4130.0,0.94003437]
[1758597192030,0.3207,4130.1,4130.0,0.289]
[1758597192439,0.43547,4129.7,4129.6,3.5189]
[1758597192640,0.43547,4129.7,4129.6,3.8079]
[1758597193536,0.75617,4129.7,4129.6,3.2078]
[1758597193731,0.43547,4129.7,4129.6,3.4958]
[1758597193937,0.75617,4129.7,4129.6,3.4958]
[1758597194338,0.43547,4129.7,4129.6,3.2078]
[1758597194537,0.75617,4129.7,4129.6,3.2078]
[1758597195144,1.43985858,4129.7,4129.6,3.2078]
[1758597195945,2.09307858,4129.7,4129.1,3.5189]
[1758597196145,0.3112,4129.5,4129.2,0.288]
[1758597196347,0.99488858,4129.4,4129.2,0.288]
[1758597196548,1.11919858,4129.3,4129.2,0.288]
[1758597196746,1.11919858,4129.3,4129.2,0.6285]
[1758597196747,0.68368858,4129.3,4129.2,0.6285]
[1758597196950,0.20177566,4129.3,4129.2,0.6285]
[1758597198043,3.2078,4130.4,4129.4,0.3405]
[1758597198241,0.43546,4129.8,4129.7,0.3405]
[1758597198644,0.43546,4129.8,4129.7,0.6275]
[1758597200149,0.43546,4129.8,4129.7,0.3405]
[1758597200455,0.74666,4129.8,4129.7,0.286]
[1758597200652,1.23484882,4129.8,4129.7,0.286]
[1758597200853,0.92364882,4129.8,4129.7,0.6265]
[1758597201547,0.43546,4129.8,4129.7,0.3405]
[1758597201761,0.92466109,4129.8,4129.7,0.6265]
[1758597202160,1.23586109,4129.8,4129.7,0.6265]
[1758597203162,1.23586109,4129.8,4129.7,0.286]
[1758597203555,1.08871,4129.6,4129.1,3.2078]
[1758597203762,0.3112,4129.4,4129.2,0.285]
[1758597203952,0.48920109,4129.3,4129.2,0.6255]
[1758597204465,0.4355,4129.4,4129.3,0.3405]
[1758597204663,0.92447333,4129.4,4129.3,0.3405]
[1758597204963,0.4355,4129.4,4129.3,0.6255]
[1758597206160,0.4355,4129.5,4129.3,0.6255]
[1758597206358,0.51048802,4129.4,4129.3,0.6255]
[1758597206763,0.43546,4129.8,4129.5,0.1297]
[1758597206966,0.51054765,4129.7,4129.6,3.8323]
[1758597207765,0.43542,4130.2,4129.7,0.77596]
[1758597207960,0.43542,4130.2,4129.5,0.1297]
[1758597207961,0.43542,4130.2,4130.1,3.2078]
[1758597208164,0.94602302,4130.2,4130.1,3.8323]
[1758597208672,0.51060302,4130.2,4130.1,3.8323]
[1758597208861,0.51060302,4130.2,4130.1,3.4918]
[1758597209167,0.43541,4130.3,4130.1,3.4918]
[1758597209671,0.3112,4130.3,4130.2,0.283]
[1758597209869,0.82781237,4130.3,4130.2,0.283]
[1758597210175,1.0241803,4130.3,4130.2,0.283]
[1758597210468,0.43547,4129.7,4129.6,3.5483]
[1758597210666,0.63185128,4129.7,4129.6,3.8313]
[1758597212667,0.94135128,4129.7,4129.6,3.5483]
[1758597212867,0.94135128,4129.7,4129.2,0.3113]
[1758597212868,0.43551,4129.3,4129.2,0.3113]
[1758597213174,0.19638128,4129.3,4129.2,4.66999121]
[1758597213472,0.19635588,4129.3,4129.2,4.91216121]
[1758597213859,0.19635588,4129.3,4129.2,4.66999121]
[1758597214372,0.43547,4129.7,4129.6,0.3113]
[1758597214668,0.1963946,4129.7,4129.6,3.8011]
[1758597215269,0.3095,4130.7,4130.0,0.1346]
[1758597215469,0.43538,4130.5,4130.4,0.3113]
[1758597215669,0.63177391,4130.5,4130.4,0.5933]
[1758597216569,0.63177391,4130.5,4130.4,0.3113]
[1758597216870,0.3095,4130.4,4130.3,3.2078]
[1758597217067,0.50589391,4130.4,4130.3,3.8001]
[1758597218074,0.19639391,4130.4,4130.3,3.8001]
[1758597218975,0.19639391,4130.4,4130.3,3.5191]
[1758597219170,0.19639391,4130.4,4130.3,3.8001]
[1758597219875,0.50589391,4130.4,4130.3,3.8001]
[1758597220271,0.19639391,4130.4,4130.3,3.8001]
[1758597221276,0.19639391,4130.4,4130.3,3.7991]
[1758597221474,0.19639391,4131.2,4130.3,4.2345]
[1758597221681,0.19639391,4131.1,4131.0,0.3113]
[1758597221971,0.63171391,4131.1,4131.0,0.5913]
[1758597222670,0.19639391,4131.1,4131.0,0.4459]
[1758597222871,0.19639391,4131.1,4131.0,0.7259]
[1758597223575,0.63171391,4131.2,4131.0,0.1346]
[1758597223776,0.19639391,4131.1,4131.0,0.1346]
[1758597223975,0.19639391,4131.1,4131.0,0.7259]
[1758597224572,0.43533,4131.0,4130.9,3.2078]
[1758597224772,0.63172391,4131.0,4130.9,3.7991]
[1758597225080,0.19639391,4131.0,4130.9,3.7991]
[1758597225273,0.19639391,4131.0,4130.9,3.2078]
[1758597225575,0.19639391,4131.0,4130.9,3.4868]
[1758597225776,0.19639391,4131.0,4130.9,3.7981]
[1758597226166,0.43531,4131.2,4131.1,0.3113]
[1758597226367,0.20582429,4131.2,4131.1,0.5903]
[1758597227776,0.74467,4132.5,4132.1,0.43521]
[1758597227972,0.3095,4132.5,4132.3,0.3113]
[1758597228176,0.3315,4132.9,4132.4,0.279]
[1758597228374,0.3315,4132.9,4132.8,3.2078]
[1758597228572,0.022,4132.9,4132.8,3.7981]
[1758597228776,0.022,4132.9,4132.8,3.2078]
[1758597228777,0.3315,4132.9,4132.8,3.2078]
[1758597228975,0.3315,4132.9,4132.8,3.4868]
[1758597231074,4.3315,4132.9,4132.8,3.2078]
[1758597231272,4.3315,4132.9,4132.3,3.2078]
[1758597231273,0.43514,4132.8,4132.3,3.2078]
[1758597231481,0.86957,4132.5,4132.4,0.278]
[1758597232770,0.86957,4132.5,4132.3,3.2078]
[1758597232977,0.3095,4131.8,4131.7,3.2078]
[1758597233173,4.1249,4132.5,4131.7,3.4858]
[1758597233174,0.43523,4132.0,4131.7,3.4858]
[1758597233476,0.43523,4132.0,4131.8,0.3113]
[1758597233682,0.43523,4132.0,4131.9,0.278]
[1758597233981,0.43523,4132.0,4131.9,0.5893]
[1758597234381,0.3095,4131.8,4131.7,3.2078]
[1758597234569,0.3095,4131.8,4131.7,3.4858]
[1758597234775,0.3095,4131.8,4131.7,3.7971]
[1758597236577,0.3095,4131.8,4131.7,3.4858]
[1758597236885,0.43524,4131.9,4131.7,3.7961]
[1758597237080,0.43524,4131.9,4131.8,0.3113]
[1758597237380,1.21284,4132.5,4131.8,0.3113]
[1758597237381,0.3095,4132.4,4131.8,0.3113]
[1758597237582,0.43522,4132.1,4132.0,0.3113]
[1758597237778,0.43522,4132.1,4132.0,0.5883]
[1758597237973,0.1249,4132.5,4132.0,0.277]
[1758597238174,0.3095,4132.4,4132.2,3.2078]
[1758597238381,0.74468,4132.4,4132.3,0.277]
[1758597238983,0.43517,4132.5,4132.3,0.5883]
[1758597239488,0.43517,4132.5,4132.4,0.3113]
[1758597239680,0.022,4132.9,4132.4,0.3113]
[1758597239889,0.022,4132.9,4132.8,3.5191]
[1758597240185,0.022,4132.9,4132.8,3.7951]
[1758597240481,0.022,4132.9,4132.8,8.03706]
[1758597240687,0.022,4132.9,4132.8,7.7951]
[1758597240878,0.022,4132.9,4132.8,3.7951]
[1758597241893,0.74992,4134.0,4133.4,0.326]
[1758597242085,0.63753744,4133.9,4133.8,0.326]
[1758597242281,0.20250744,4133.9,4133.8,0.602]
[1758597243384,0.74993,4133.8,4133.7,3.2078]
[1758597243589,0.95243744,4133.8,4133.7,3.4828]
[1758597243785,0.63753744,4133.8,4133.7,3.8088]
[1758597243991,0.20250744,4133.8,4133.7,3.8088]
[1758597244592,0.1249,4134.5,4133.7,3.8088]
[1758597244789,0.43501,4134.1,4133.8,0.326]
[1758597244984,0.43501,4134.1,4133.9,0.601]
[1758597244985,0.20230265,4134.0,4133.9,0.601]
[1758597245483,0.43495,4134.6,4133.9,0.602]
[1758597245685,0.20226822,4134.5,4134.4,0.326]
[1758597245992,0.20226822,4134.5,4134.4,0.602]
[1758597246192,0.20226822,4134.5,4134.4,4.602]
[1758597246692,0.1248,4135.5,4134.4,45.402]
[1758597246894,0.43495,4134.7,4134.6,0.326]
[1758597247082,0.63710669,4134.7,4134.6,0.601]
[1758597247285,0.20215669,4134.7,4134.6,0.601]
[1758597247685,0.3149,4134.6,4134.5,3.2078]
[1758597247989,0.51705669,4134.6,4134.5,3.4828]
[1758597248196,0.63710669,4134.6,4134.5,3.8088]
[1758597248494,0.20215669,4134.6,4134.5,3.8088]
[1758597249088,0.20215669,4134.6,4134.5,3.5338]
[1758597249290,0.51705669,4134.6,4134.5,3.4828]
[1758597249490,0.51705669,4134.6,4134.5,3.8088]
[1758597249896,0.3149,4134.6,4134.5,3.2078]
[1758597250090,0.50539144,4134.6,4134.5,3.2078]
[1758597250283,0.50539144,4134.6,4134.5,3.8088]
[1758597250690,0.74983,4134.9,4134.5,3.2941]
[1758597250993,0.74984,4134.7,4134.6,0.601]
[1758597251195,0.3149,4134.7,4134.6,0.601]
[1758597251398,0.3149,4135.4,4134.7,0.326]
[1758597251592,0.7564792,4135.3,4134.9,0.326]
[1758597251792,0.7498,4135.1,4135.0,0.275]
[1758597251997,0.94030692,4135.1,4135.0,0.275]
[1758597252292,0.435,4134.1,4134.0,3.2078]
[1758597252499,0.7499,4134.1,4134.0,3.4828]
[1758597252697,0.43498,4134.4,4134.0,3.4828]
[1758597252896,0.19050087,4134.3,4134.0,3.6054]
[1758597253198,0.435,4134.2,4134.0,3.6054]
[1758597253389,0.435,4134.2,4134.1,0.326]
[1758597253691,0.43497,4134.4,4134.1,0.326]
[1758597253893,0.19053224,4134.3,4134.2,0.601]
[1758597254091,0.43495,4134.6,4134.2,0.274]
[1758597254292,0.19052104,4134.5,4134.4,0.326]
[1758597254493,0.19052104,4134.5,4134.4,0.6]
[1758597254694,3.2078,4135.3,4134.5,0.0863]
[1758597254897,3.2078,4136.2,4135.2,0.326]
[1758597255204,0.75685188,4136.1,4135.7,0.326]
[1758597255500,0.3149,4135.9,4135.8,0.601]
[1758597255694,0.3149,4135.7,4135.6,3.2078]
[1758597255894,0.50549533,4135.7,4135.6,3.2078]
[1758597256200,0.50549533,4135.7,4135.6,3.4818]
[1758597256402,0.50549533,4135.7,4135.6,3.8097]
[1758597256597,0.19059533,4135.7,4135.6,3.8097]
[1758597257197,0.52439533,4135.7,4135.6,3.4818]
[1758597257593,0.43482,4135.8,4135.6,3.8097]